Cogmind - Beta 11.1 @@@ ROGUE MODE // 2022.05.24 @ 21:58:29 Player: darki Result: Destroyed by T4-HPC(z) with Makeshift Axe Performance ------------- Evolutions (1) 500 Regions Visited (5) 1000 Robots Destroyed (63) 315 Value Destroyed (999) 999 Prototype IDs (5) 100 Alien Tech Used (0) 0 Bonus (-26) -26 TOTAL SCORE: 2888 Bonus ------- Follower Combat Kills 112 Met Imprinter 300 Friendly Fire -438 Cogmind --------- Core Integrity 0/400 Matter 140/300 Energy 49/100 System Corruption 2% Temperature Cool (0) Movement Walking (205) Ox1 Location -7/Zion Parts ------- > --- POWER (1) -------- (None) > --- PROPULSION (2) --- Improved Titanium Leg Makeshift Leg > --- UTILITY (4) ------ Large Storage Unit Makeshift Terrain Scan Processor Hacking Drone Bay (1/1) Phasing AFG > --- WEAPON (2) ------- Makeshift Shrapnel Gun Heavy Missile Launcher > --- INVENTORY (15) --- Aluminum Leg Aluminum Leg Aluminum Leg Improved Titanium Leg Makeshift Leg High-capacity Matter Pod (200) High-capacity Matter Pod (0) Rocket Launcher Heavy Missile Launcher Maul Maul GAL Module Peak State ------------ > --- POWER ------------ (None) > --- PROPULSION ------- Improved Titanium Leg Makeshift Leg > --- UTILITY ---------- Large Storage Unit Makeshift Terrain Scan Processor Hacking Drone Bay Phasing AFG > --- WEAPON ----------- Makeshift Shrapnel Gun Heavy Missile Launcher > --- INVENTORY -------- Aluminum Leg Aluminum Leg Aluminum Leg Improved Titanium Leg Makeshift Leg High-capacity Matter Pod High-capacity Matter Pod Rocket Launcher Heavy Missile Launcher Maul Maul GAL Module [Rating: 46] Favorites ----------- Power Light Ion Engine Engine Light Ion Engine Propulsion Aluminum Leg Treads Light Treads Leg Aluminum Leg Utility Large Storage Unit Device Terrain Scanner Storage Large Storage Unit Processor Signal Interpreter Weapon Maul Energy Gun EM Pulse Gun Ballistic Gun Light Assault Rifle Launcher Grenade Launcher Impact Weapon Maul Build | -11 -10 -10 -9 -9 -7 ------- Run | Scr Mat Min Mat Min Zio Slots Evolved 2 | . . . 2 . . Power . | . . . . . . Propulsion . | . . . . . . Utility 2 | . . . 2 . . Weapon . | . . . . . . Parts Attached 51 | . 5 5 5 11 25 Power 7 | . . 2 . 2 3 Engine 7 | . . 2 . 2 3 Core . | . . . . . . Reactor . | . . . . . . Propulsion 9 | . . 1 2 3 3 Treads 3 | . . . 2 1 . Leg 6 | . . 1 . 2 3 Wheel . | . . . . . . Hover . | . . . . . . Flight . | . . . . . . Utility 9 | . 2 . 3 . 4 Device 5 | . . . 2 . 3 Storage 1 | . 1 . . . . Processor 3 | . 1 . 1 . 1 Hackware . | . . . . . . Protection . | . . . . . . Artifact . | . . . . . . Weapon 26 | . 3 2 . 6 15 Energy Gun . | . . . . . . Energy Cannon . | . . . . . . Ballistic Gun 7 | . . 2 . 2 3 Ballistic Cannon . | . . . . . . Launcher 11 | . 3 . . 2 6 Special Weapon . | . . . . . . Impact Weapon 8 | . . . . 2 6 Slashing Weapon . | . . . . . . Piercing Weapon . | . . . . . . Special Melee Weapon . | . . . . . . Unidentified Prototypes 4 | . . . . . 4 Parts Lost 8 | . 1 . 1 4 2 Power 3 | . . . . 2 1 Propulsion 2 | . . . 1 1 . Utility . | . . . . . . Weapon 3 | . 1 . . 1 1 Highest Loss Streak 2 | . 1 . 1 2 2 To Critical Strikes . | . . . . . . Average Slot Usage (%) 95 | . 99 100 99 92 94 Engine 10 | . 14 14 11 4 10 Treads 2 | . . . 13 15 . Leg 21 | . 28 28 7 6 22 Device 7 | . . . 11 11 11 Storage 12 | . 21 14 11 11 11 Processor 16 | . 6 14 22 22 17 Ballistic Gun 5 | . . 15 22 3 2 Launcher 8 | . 26 12 . . 5 Impact Weapon 10 | . . . . 17 14 Naked Turns . | . . . . . . Heaviest Build 66 | 12 34 29 26 32 66 Greatest Support 40 | 20 20 20 40 40 40 Greatest Overweight (x) 2 | . 1 1 2 2 2 Average Overweight (x) 1 | . . 1 . . 1 Largest Inventory Capacity 15 | . 15 15 15 15 15 Average Capacity 14 | . 14 15 15 15 15 Most Carried 15 | . 15 15 15 15 15 Average Carried 14 | . 12 14 13 14 14 Final Capacity 15 | 8 15 15 15 15 15 Final Carried 15 | 6 14 15 15 15 12 Class Distribution -------------------- 87% | Mutant 11% | Scavenger-Mutant Dominant Class ---------------- Mutant | -10/Materials Mutant | -10/Mines Scavenger-Mutant | -9/Materials Mutant | -9/Mines Mutant | -7/Zion Resources | -11 -10 -10 -9 -9 -7 ----------- Run | Scr Mat Min Mat Min Zio Matter Collected 1725 | 160 24 134 59 784 564 Remotely . | . . . . . . Salvage Created 1530 | . 126 122 59 784 439 Parts 94 | . 18 21 3 26 26 Haulers Intercepted . | . . . . . . Recyclers Shooed 1 | . . . . 1 . Parts Field Recycled . | . . . . . . Retrieved Matter . | . . . . . . Parts Self-Destructed . | . . . . . . Prevented . | . . . . . . Kills | -11 -10 -10 -9 -9 -7 ------- Run | Scr Mat Min Mat Min Zio Combat Hostiles Destroyed 30 | . 6 7 1 11 5 Melee 3 | . . . . 3 . Guns 6 | . . 1 1 3 1 AOE 19 | . 6 6 . 4 3 Classes Destroyed 12 | . 5 1 1 2 3 Worker 6 | . 2 . . 4 . Builder 5 | . 2 2 . 1 . Tunneler 2 | . . 1 . 1 . Recycler 6 | . . . . 6 . Mechanic 1 | . . . . 1 . Watcher 1 | . 1 . . . . Swarmer 17 | . 3 6 . 8 . Grunt 7 | . 3 1 . 3 . Sentry 1 | . . . 1 . . Zionite 11 | . . . . . 11 Tinkerer 3 | . . . . . 3 Thug 1 | . . . . . 1 Mutant 5 | . . . . . 5 Best Kill Streak 6 | . 6 3 1 6 4 Combat Bots Only 4 | . 3 3 1 4 4 Max Kills in Single Turn 5 | . 3 2 1 5 3 Gunslinging . | . . . . . . Exploded 3 | . 3 2 . 3 2 Melee 1 | . . . . 1 . Uniques/NPCs Destroyed . | . . . . . . Combat | -11 -10 -10 -9 -9 -7 -------- Run | Scr Mat Min Mat Min Zio Damage Taken 2449 | . 211 164 115 684 1275 Core 453 | . 1 31 15 116 290 Absorbed by Shields . | . . . . . . Core Remaining (%) 93 | 100 . 87 . . . Volleys Fired 84 | . 8 27 4 17 28 Largest 2 | . 2 2 2 2 2 Hottest 78 | . 60 60 40 63 78 Shots Fired 152 | . 15 54 8 29 46 Gun 121 | . . 46 8 25 42 Cannon . | . . . . . . Launcher 31 | . 15 8 . 4 4 Special . | . . . . . . Kinetic 121 | . . 46 8 25 42 Thermal . | . . . . . . Explosive 31 | . 15 8 . 4 4 Electromagnetic . | . . . . . . Robot Hit Streak 12 | . 3 8 4 12 12 Robot Miss Streak 8 | . 1 4 1 1 8 Penetration Max . | . . . . . . Secondary Targets 1 | . . . . . 1 Max Gunslinging Chain 1 | . . . . . 1 Shots Hit Robots 127 | . 8 29 6 45 39 Core Hits 89 | . 16 20 3 19 31 Critical Kills 2 | . . . . 2 . Critical Parts Destroyed 8 | . . 2 . 4 2 Critical Strikes 10 | . . 2 . 6 2 Destroy 3 | . . 2 . 1 . Smash 7 | . . . . 5 2 Melee Attacks 90 | . . . . 27 63 Impact 90 | . . . . 27 63 Slashing . | . . . . . . Piercing . | . . . . . . Sneak Attacks 17 | . . . . 13 4 Combat Hostiles . | . . . . . . Follow-up Attacks 2 | . . . . 2 . Damage Inflicted 5081 | . 619 561 55 1996 1850 Guns 1032 | . . 220 55 282 475 Cannons . | . . . . . . Explosions 2143 | . 619 331 . 368 825 Melee 1850 | . . . . 1300 550 Ramming 56 | . . 10 . 46 . Kinetic 1032 | . . 220 55 282 475 Thermal . | . . . . . . Explosive 2143 | . 619 331 . 368 825 Electromagnetic . | . . . . . . Impact 1850 | . . . . 1300 550 Slashing . | . . . . . . Piercing . | . . . . . . Highest Corruption 2 | . . . . . 2 Average Corruption 2 | . . . . . 2 Corruption Purged . | . . . . . . Corruption Blocked . | . . . . . . Effects 9 | . . . . . 9 Message Errors 2 | . . . . . 2 Matter Fused 1 | . . . . . 1 Heat Flow Errors 1 | . . . . . 1 Energy Discharges 1 | . . . . . 1 Data Loss (minor) 2 | . . . . . 2 Data Loss (major) 1 | . . . . . 1 Misfires 1 | . . . . . 1 Overload Shots . | . . . . . . Overflow Damage 952 | . 37 43 . 570 302 Projectiles . | . . . . . . Explosions 86 | . 37 43 . . 6 Melee 866 | . . . . 570 296 Knockbacks 9 | . . . . 7 2 Impact 9 | . . . . 7 2 Kinetic . | . . . . . . Secondary . | . . . . . . Self-Inflicted Damage 146 | . 45 33 . . 68 Shots 7 | . 2 2 . . 3 Rammed 18 | . . . . 18 . Targets Rammed 21 | . . 3 . 18 . Kicked 3 | . . 3 . . . Crushed . | . . . . . . Highest Temperature 209 | . 24 15 6 . 209 Average Temperature 25 | . 12 11 4 . 35 Received Heat Transfer 498 | . 54 42 36 276 90 Siege Activations . | . . . . . . Robots Corrupted . | . . . . . . Combat Hostiles . | . . . . . . Parts Fried 11 | . . . . 7 4 Impact Corruptions 38 | . . . . 24 14 Robots Melted . | . . . . . . Combat Hostiles . | . . . . . . Parts Melted 2 | . . . . . 2 Heat Transferred . | . . . . . . Parts Sabotaged . | . . . . . . Parts Stolen . | . . . . . . Parts Stripped . | . . . . . . Power Chain Reactions . | . . . . . . Missiles Intercepted . | . . . . . . Alert | -11 -10 -10 -9 -9 -7 ------- Run | Scr Mat Min Mat Min Zio Peak Influence 375 | . 223 318 35 375 . Initial 58 | . . 58 . 13 . Average 159 | . 118 136 25 242 . Maximum Alert Level 1 | . 1 1 . 1 . Low Security (%) 67 | . 75 87 100 29 . Level 1 32 | . 24 12 . 70 . Level 2 . | . . . . . . Level 3 . | . . . . . . Level 4 . | . . . . . . Level 5 . | . . . . . . High Security . | . . . . . . Max Security . | . . . . . . Squads Dispatched 2 | . 1 . . 1 . Investigation . | . . . . . . Extermination . | . . . . . . Reinforcement 1 | . 1 . . . . Assault 1 | . . . . 1 . Garrison . | . . . . . . Intercept . | . . . . . . Searches Triggered . | . . . . . . Construction Impeded . | . . . . . . Haulers Reinforced . | . . . . . . Active Scanning Responses . | . . . . . . Cargo Convoy Interrupts . | . . . . . . Stealth | -11 -10 -10 -9 -9 -7 --------- Run | Scr Mat Min Mat Min Zio Distress Signals 1 | . 1 . . . . Communications Jammed . | . . . . . . Distress Signals . | . . . . . . Times Spotted 60 | . 11 8 1 18 22 Peak Tracking Total 9 | . 3 3 1 4 9 Tactical Retreats 7 | . . 4 . 1 2 Traps | -11 -10 -10 -9 -9 -7 ------- Run | Scr Mat Min Mat Min Zio Traps Triggered 1 | . 1 . . . . Indirectly . | . . . . . . Trap Hack Attempts . | . . . . . . Triggered . | . . . . . . Disarmed . | . . . . . . Reprogrammed . | . . . . . . Reused . | . . . . . . Traps Extracted . | . . . . . . Installed . | . . . . . . Triggered . | . . . . . . Fabricated Traps 4 | . . . . . 4 Machines | -11 -10 -10 -9 -9 -7 ---------- Run | Scr Mat Min Mat Min Zio Machines Disabled 4 | . 1 . . . 3 Max in Single Turn 1 | . 1 . . . 1 Machines Sabotaged . | . . . . . . Garrisons Compromised . | . . . . . . Overloaded Fab Kills . | . . . . . . Hacking | -11 -10 -10 -9 -9 -7 --------- Run | Scr Mat Min Mat Min Zio Machines Accessed 3 | . 3 . . . . Terminals 3 | . 3 . . . . Fabricators . | . . . . . . Repair Stations . | . . . . . . Recycling Units . | . . . . . . Scanalyzers . | . . . . . . Garrison Access . | . . . . . . Total Hacks 5 | . 5 . . . . Successful 1 | . 1 . . . . Failed 4 | . 4 . . . . Catastrophic 1 | . 1 . . . . Database Lockouts . | . . . . . . Manual 5 | . 5 . . . . Terminals 5 | . 5 . . . . Fabricators . | . . . . . . Repair Stations . | . . . . . . Recycling Units . | . . . . . . Scanalyzers . | . . . . . . Garrison Access . | . . . . . . Terminal Hacks 1 | . 1 . . . . Branch Access Points 1 | . 1 . . . . Fabricator Hacks . | . . . . . . Repair Station Hacks . | . . . . . . Recycling Unit Hacks . | . . . . . . Scanalyzer . | . . . . . . Garrison Access Hacks . | . . . . . . Unauthorized Hacks . | . . . . . . Terminals . | . . . . . . Fabricators . | . . . . . . Repair Stations . | . . . . . . Recycling Units . | . . . . . . Scanalyzers . | . . . . . . Garrison Access . | . . . . . . Data Cores Recovered . | . . . . . . Used . | . . . . . . Hacking Detections 2 | . 2 . . . . Full Trace Events . | . . . . . . Feedback Events . | . . . . . . Feedback Blocked . | . . . . . . Robot Schematics Acquired 3 | . . . . . 3 Robots Built . | . . . . . . Authchips . | . . . . . . Time . | . . . . . . Total Robot Build Rating . | . . . . . . Part Schematics Acquired 14 | . . . . . 14 Parts Built . | . . . . . . Authchips . | . . . . . . Time . | . . . . . . Total Part Build Rating . | . . . . . . Parts Repaired . | . . . . . . Time . | . . . . . . Parts Recycled . | . . . . . . Recycled Matter . | . . . . . . Retrieved Matter . | . . . . . . Retrieved Components . | . . . . . . Parts Scanalyzed . | . . . . . . Part Schematics Acquired . | . . . . . . Parts Damaged . | . . . . . . Bothacking | -11 -10 -10 -9 -9 -7 ------------ Run | Scr Mat Min Mat Min Zio Used RIF Installer . | . . . . . . Robots Hacked . | . . . . . . Non-combat . | . . . . . . Combat . | . . . . . . Robot Hacks Applied . | . . . . . . Relay Couplers Released . | . . . . . . Fabnet Peak Effective % . | . . . . . . Robots Rewired . | . . . . . . Allies Hacked . | . . . . . . Hacks Repelled . | . . . . . . Allies | -11 -10 -10 -9 -9 -7 -------- Run | Scr Mat Min Mat Min Zio Total Allies 1 | . . . . 1 . Largest Group 1 | . . . . 1 1 Highest-Rated Group 31 | . . . . 31 28 Highest-Rated Ally 31 | . . . . 31 28 Total Orders . | . . . . . . Ally Attacks 8 | . . . . 7 1 Total Damage 127 | . . . . 127 . Kills 4 | . . . . 4 . Allies Corrupted . | . . . . . . Allies Melted . | . . . . . . Intel | -11 -10 -10 -9 -9 -7 ------- Run | Scr Mat Min Mat Min Zio Robot Analysis Total . | . . . . . . Derelict Logs Recovered 1 | . . 1 . . . Drone Launches . | . . . . . . Drone Recoveries . | . . . . . . Exploration | -11 -10 -10 -9 -9 -7 ------------- Run | Scr Mat Min Mat Min Zio Turns Passed 6076 | . 645 1222 172 920 3117 Spaces Moved 2531 | 1 309 568 76 355 1222 Core . | . . . . . . Treads 246 | . . . 60 186 . Legs 2285 | 1 309 568 16 169 1222 Wheels . | . . . . . . Hover . | . . . . . . Flight . | . . . . . . Fastest Speed 120 | 120 120 190 160 160 190 Average Speed 201 | 120 185 190 168 202 212 Slowest Speed 265 | 120 190 190 260 260 265 Overloaded Moves . | . . . . . . Propulsion Burnouts . | . . . . . . Robots Hopped . | . . . . . . Cave-ins Triggered . | . . . . . . Exploration Rate (%) 49 | 2 59 97 7 43 88 Regions Visited 5 Branch Regions 3 Pre-discovered Areas 5 | . . 1 . 1 3 Known Exits Taken 4 | . 1 1 1 1 . Unknown Exits Taken 1 | 1 . . . . . Scrap Searched 5 | . . 1 . . 4 Spaces Dug 18 | . . 18 . . . Terrain Destroyed 130 | . 43 56 . 31 . Melee . | . . . . . . Projectile . | . . . . . . AOE 130 | . 43 56 . 31 . Terrain Rammed . | . . . . . . Walls Destroyed . | . . . . . . Machines Disabled . | . . . . . . Actions | -11 -10 -10 -9 -9 -7 --------- Run | Scr Mat Min Mat Min Zio Total 3191 | . 366 665 114 469 1577 Wait 352 | . 31 55 24 36 206 Move 2526 | . 308 567 75 354 1222 Hop . | . . . . . . Pick Up 35 | . 10 3 3 6 13 Fast Attach 13 | . 4 . 1 2 6 Attach 12 | . 1 . 3 3 5 Detach 2 | . . . 1 . 1 Swap 26 | . . 5 1 6 14 Drop 37 | . 4 5 2 4 22 Fire 84 | . 8 27 4 17 28 Melee 83 | . . . . 23 60 Ram . | . . . . . . Kick 3 | . . 3 . . . Crush 18 | . . . . 18 . Escape Stasis . | . . . . . . Rewire . | . . . . . . Trap . | . . . . . . Miscellaneous . | . . . . . . Route ------- -11/Scrapyard -10/Materials (discovered 3 exits: *Mat / *Min x2) -10/Mines (discovered 2 exits: *Mat x2) -9/Materials -9/Mines (discovered 3 exits: *Mat / [*Exi] / *Zio) -7/Zion (discovered 2 exits: [Dee] / *Pro) History --------- Turn | Location | Event 1 | -11/Scrapyard | Discovered new exit (range 0) 1 | -11/Scrapyard | Entered Materials 302 | -10/Materials | Build established: Mutant 410 | -10/Materials | Discovered new exit (range 11) 517 | -10/Materials | Identified exit to Materials 582 | -10/Materials | Identified exit to Mines 646 | -10/Materials | Entered Mines 808 | -10/Mines | Received a Rocket Launcher from a helpful Derelict 935 | -10/Mines | Learned location of Zion (-7) 994 | -10/Mines | Discovered exit to Materials (range 11) 1668 | -10/Mines | Discovered exit to Materials (range 10) 1868 | -10/Mines | Entered Materials 1868 | -9/Materials | Evolved 2 slots: Utility x2 1889 | -9/Materials | Discovered new exit (range 15) 1964 | -9/Materials | Identified exit to Mines 2040 | -9/Materials | Entered Mines 2416 | -9/Mines | Deemed a non-threat by the Exiles lab entrance 2416 | -9/Mines | Discovered new exit (range 5) 2453 | -9/Mines | Met a Derelict testing a Signal Generator 2461 | -9/Mines | Found Signal Generator 2643 | -9/Mines | A Derelict revealed a hidden shortcut to a safe place 2645 | -9/Mines | Identified exit to Zion 2652 | -9/Mines | Discovered new exit (range 4) 2662 | -9/Mines | Learned location of Storage (-8) 2663 | -9/Mines | Identified exit to Materials 2960 | -9/Mines | Entered Zion 2960 | -7/Zion | Accompanied by 1 ally 2997 | -7/Zion | Given the Hacking Drone Bay 2997 | -7/Zion | Found Prototype Device 3042 | -7/Zion | Discovered new exit (range 16) 3107 | -7/Zion | Found Prototype Device 3174 | -7/Zion | Identified exit to Proximity Caves 3203 | -7/Zion | Build established: Scavenger-Mutant 3307 | -7/Zion | Learned location of Warlord (-5) 3495 | -7/Zion | Given A8's code to call for help 3743 | -7/Zion | Build established: Mutant 4247 | -7/Zion | Discovered new exit (range 10) 4459 | -7/Zion | Learned location of Quarantine (-3) 4755 | -7/Zion | Found Prototype Device 4755 | -7/Zion | Identified Bomb Factory No. 2 4979 | -7/Zion | Found GAL Module 5562 | -7/Zion | Attacked by Zionites 5751 | -7/Zion | Core integrity fell below 50% 6064 | -7/Zion | Core integrity fell below 20% 6064 | -7/Zion | Identified Hacking Drone Bay 6066 | -7/Zion | Identified Phasing AFG 6077 | -7/Zion | Destroyed by T4-HPC(z) with Makeshift Axe Last Messages --------------- 06016_ Barrage Gun destroyed. 06018_ SF-HVU(z) destroyed. 06020_ EL-6QR(z) overheating. 06022_ EL-6QR(z) heat short circuits Mak. Laser. 06022_ EL-6QR(z) pulls a Unknown Piercing Weapon out of the Twisted Machinery. 06022_ EL-6QR(z) overheating. 06022_ Mak. Hover Unit melted. 06022_ Imp. Carbon-fiber Leg melted. 06022_ EL-6QR(z) destroyed. 06024_ Acquired 16 matter. 06042_ Y3-D99(z) pulls a Mak. Shrapnel Gun out of the Twisted Machinery. 06056_ Knocked back. 06060_ Acquired 3 matter. 06064_ Dropped Bomb Factory No. 2. 06064_ Identified Hacking Drone Bay. 06066_ Identified Phasing AFG. 06071_ 31-C8L(M) destroyed. 06073_ Acquired 1 matter. 06075_ Acquired 30 matter. Map ----- +----------------------------------------------------+ | ????????????###?##########?##### #??#?######### | | ????????#??#####??### #######?#""" "####??###"""" | | ??????#############] [] ####?## #"###"#"" ""# | | ????####?########## ]] #?##### " """##! !# | | ???#?###############" "########"""" ""##!! !# | | ??################# #"#"###""" ###"" #" | | ??##############"#" """##"" ##""" # | | ####?#?##########"""" ""#""" #"" | | ######?#######"#""" "" ""#" " | | ####"#######"#"""" """ "" | | ###""""?#"#"""#"" " "" | | ##"#########"""""" " | | #"## " X""#" """"" "" " | | ##"#X X X# """" """""" ""#""" " | | ############ """" """"" ""#"" " | | # ? " " " """ " " """" " | | # " " " "" " " " " | | # ####### """""" "" "" " " | | ? < #""##"""""""###"" "" "" " """ | | # ? #""###"#""""###"" "" "" " """""" " | | ###########"########"" """""" "" " """"""""" | | ""#""##?###########"""" ""##"" "" "" """""""" | | ######################" """""" " | | #####################"" """##" | | ?########?###########"" " """" | | ??###################"""!@zz% """"""#"#" | | ???##########?########"""" """ """"""""""" | | ?????################"#""""""""" "#""#"#""""" | | ??????##############""""" """" """#####""## | | ?#?##????#?#?#?#?###"" """ ""####?##### | | ???#????############"" """ ""##?##???#? | | ???###??###?######?##" / " ""######?##? | | ?#??##########?#####"" " "##?#?#####? | | ?#?#?#?#########?####"" " ""##??###### | | #??##?#####"#########""" % "" """##?#####? | | #""?###"""#"##"#"#"###"" """""" "###??##?##? | | #####"""""" " """""""""" """##"" "#######???? | | """ #""" * """""""" """"""" """####?###?? | | """ ##"" [= *%[ """""" """"#"#?#?#?? | | #"#" [ == = """ """###?#?#? | | ##"" /="""" " "" """ ""##????#? | | """"" "" """ """##?##?? | | ""#""" ""###????? | | "###"" % ""#???##? | | ###" "##"" """ """"!* "###??#? | | #""" "##"" """ """#" ""##?##? | | """ #"#" "##""" "" ""##"" ""#####? | | """ #"#" ""##"""""""" """#"" "" """####? | | #####"#" "###"#""""#"" ""#" """"""#####?? | | ######"# ""#?#""""#""""" """" """"""###?#?? | +----------------------------------------------------+ Best States ------------- Heat Dissipation 28 Energy Generation 16 Energy Capacity 290 Matter Stores 300 Matter Capacity 300 Sight Range 16 Terrain Scan Range 14 Terrain Scan Density 135 Evasion (%) 55 Recoil Reduction 2 Item Schematics ----------------- Force Field | -7/Zion | Archive Mak. Salvage Targeting Computer | -7/Zion | Archive Magnetic Acceleration Cannon | -7/Zion | Archive Hvy. Ion Cannon | -7/Zion | Archive Spk. Medium Treads | -7/Zion | Archive Core Analyzer | -7/Zion | Archive Adv. Drone Bay | -7/Zion | Archive Hvy. Plasma Cannon | -7/Zion | Archive Microactuators | -7/Zion | Archive Drone Bay | -7/Zion | Archive Mak. Hammer | -7/Zion | Archive Power Amplifier | -7/Zion | Archive Lightning Gun | -7/Zion | Archive Tiamat Missile Launcher | -7/Zion | Archive Robot Schematics ------------------ W-25 Informer | -7/Zion | Archive K-01 Serf | -7/Zion | Archive B-48 Gladiator | -7/Zion | Archive Fabricated ------------ Nothing Alien Tech Used ----------------- None Achievements -------------- None Challenges ------------ None Game ------ Seed FlakSalvageSource Manual? 0 Play Time 00:28:12 Cumulative 77.2 hours Start 2022.05.24 @ 21:23:57 End 2022.05.24 @ 21:58:29 Sessions 1 Manual Loads 0 Difficulty Rogue Special Mode None Game No. 87 Rogue 87 Adventurer 0 Explorer 0 Win Type - Total 0 Types 0/0/0/0/0/0/0/0/0 Lore% 41 Gallery% 52 Achievement% 39 Wizard Run 0 Options --------- ASCII 0 Keyboard 0 Movement Mouse Keybinds 0 Fullscreen 1 Font 18/SmallcapsGlow Map View 76x50 Tactical HUD 1 Map Filters NONE Filters NONE Steam 1 RUN: 912ffa75-6b75-4d82-affd-bcac979f867d